[Event "44th Chess Olympiad Women 2022"]
[Site "Chennai"]
[Date "2022.08.06"]
[Round "8.36"]
[White "Rouda Essa, Alserkal"]
[Black "Nguyen, Thu Giang"]
[Result "1/2-1/2"]
[WhiteElo "1874"]
[BlackElo "2119"]
[Annotator "NA RC"]
[PlyCount "118"]
[EventDate "2022.??.??"]
[TimeControl "60"]

1. e4 {[%emt 0:00:02]} c6 {[%emt 0:00:38]} 2. d4 {[%emt 0:00:05]} d5 {[%emt 0:
00:00]} 3. Nd2 {[%emt 0:00:04]} dxe4 {[%emt 0:00:10]} 4. Nxe4 {[%emt 0:00:04]}
Bf5 {[%emt 0:00:44]} 5. Ng3 {[%emt 0:00:06]} Bg6 {[%emt 0:00:04]} 6. h4 {
[%emt 0:00:04]} h6 {[%emt 0:00:04]} 7. Bd3 {[%emt 0:00:06]} Bxd3 {[%emt 0:00:
00]} 8. Qxd3 {[%emt 0:00:06]} e6 {[%emt 0:00:28]} 9. N1e2 {[%emt 0:04:05]} Nf6
{[%emt 0:02:05]} 10. Bd2 {[%emt 0:02:43]} Bd6 {[%emt 0:01:24]} 11. O-O-O {
[%emt 0:02:45]} Nbd7 {[%emt 0:01:21]} 12. Nc3 {[%emt 0:02:00]} Qc7 {[%emt 0:00:
00]} 13. Nce4 {[%emt 0:08:00]} Bf4 {[%emt 0:05:04]} 14. Qa3 {[%emt 0:17:17]}
Nxe4 {[%emt 0:21:37]} 15. Nxe4 {[%emt 0:00:06]} Nf6 {[%emt 0:00:48]} 16. Nxf6+
{[%emt 0:02:20]} gxf6 {[%emt 0:02:31]} 17. Rhe1 {[%emt 0:05:15]} Bd6 {[%emt 0:
00:00]} 18. Qa4 {[%emt 0:02:04]} b5 {[%emt 0:06:48]} 19. Qb3 {[%emt 0:04:45]}
O-O-O {[%emt 0:03:55]} 20. Kb1 {[%emt 0:11:25]} Kb8 {[%emt 0:03:16]} 21. Rc1 {
[%emt 0:02:33]} Qb7 {[%emt 0:01:40]} 22. c4 {[%emt 0:05:48]} Rc8 {[%emt 0:00:
00]} 23. Qf3 {[%emt 0:03:30]} f5 {[%emt 0:02:16]} 24. cxb5 {[%emt 0:05:14]}
Qxb5 {[%emt 0:05:30]} 25. Bf4 {[%emt 0:03:18]} Bxf4 {[%emt 0:05:19]} 26. Qxf4+
{[%emt 0:00:09]} Ka8 {[%emt 0:01:16]} 27. Qe3 {[%emt 0:05:31]} Rb8 {[%emt 0:00:
00]} 28. Qc3 {[%emt 0:01:33]} Rhd8 {[%emt 0:06:20]} 29. Re5 {[%emt 0:01:10]}
Rd5 {[%emt 0:02:44]} 30. Rxd5 {[%emt 0:07:51]} Qxd5 {[%emt 0:04:54]} 31. Qxc6+
{[%emt 0:00:51]} Qxc6 {[%emt 0:00:05]} 32. Rxc6 {[%emt 0:00:04]} Kb7 {[%emt 0:
00:00]} 33. Rc3 {[%emt 0:00:36]} Rd8 {[%emt 0:00:34]} 34. Rd3 {[%emt 0:02:58]}
Kc6 {[%emt 0:02:47]} 35. Kc2 {[%emt 0:01:13]} Kd5 {[%emt 0:01:17]} 36. Rg3 {
[%emt 0:01:35]} Rc8+ {[%emt 0:00:51]} 37. Rc3 {[%emt 0:01:04]} Rg8 {[%emt 0:00:
00]} 38. g3 {[%emt 0:00:31]} f4 {[%emt 0:01:29]} 39. Rd3 {[%emt 0:00:38]} Rg4 {
[%emt 0:00:28]} 40. Kc3 {[%emt 0:00:24]} fxg3 {[%emt 0:00:51]} 41. fxg3 {
[%emt 0:30:17]} f5 {[%emt 0:01:47]} 42. b4 {[%emt 0:00:00]} h5 {[%emt 0:13:28]}
43. b5 {[%emt 0:00:00]} f4 {[%emt 0:03:10]} 44. gxf4 {[%emt 0:00:00]} Rxf4 {
[%emt 0:00:31]} 45. a4 {[%emt 0:00:00]} Rxh4 {[%emt 0:00:51]} 46. a5 {[%emt 0:
00:00]} Rg4 {[%emt 0:03:30]} 47. Kb4 {[%emt 0:00:00]} h4 {[%emt 0:01:31]} 48.
b6 {[%emt 0:00:00]} axb6 {[%emt 0:06:10]} 49. a6 {[%emt 0:00:00]} Rg8 {[%emt 0:
00:00]} 50. Kb5 {[%emt 0:00:00]} Ke4 {[%emt 0:00:22]} 51. Rh3 {[%emt 0:00:00]}
Kxd4 {[%emt 0:00:23]} 52. Rxh4+ {[%emt 0:00:00]} Kd5 {[%emt 0:00:19]} 53. Kxb6
{[%emt 0:00:00]} e5 {[%emt 0:00:17]} 54. a7 {[%emt 0:00:00]} e4 {[%emt 0:00:13]
} 55. Kb7 {[%emt 0:00:00]} Kd4 {[%emt 0:00:25]} 56. a8=Q {[%emt 0:00:00]} Rxa8
{[%emt 0:00:03]} 57. Kxa8 {[%emt 0:00:00]} Kd3 {[%emt 0:00:04]} 58. Rh3+ {
[%emt 0:00:00]} e3 {[%emt 0:00:07]} 59. Rxe3+ {[%emt 0:00:00]} Kxe3 {[%emt 0:
00:00]} 1/2-1/2

[Event "44th Chess Olympiad Women 2022"]
[Site "Chennai"]
[Date "2022.08.06"]
[Round "8.36"]
[White "Zhang, Jilin"]
[Black "Al Mansouri, Moza"]
[Result "1-0"]
[WhiteElo "2212"]
[BlackElo "1606"]
[Annotator "RC"]
[PlyCount "93"]
[EventDate "2022.??.??"]
[TimeControl "60"]

1. e4 {[%emt 0:00:01]} c5 {[%emt 0:00:05]} 2. Nf3 {[%emt 0:00:08]} d6 {[%emt 0:
00:00]} 3. d4 {[%emt 0:00:10]} cxd4 {[%emt 0:00:05]} 4. Nxd4 {[%emt 0:00:05]}
Nf6 {[%emt 0:00:10]} 5. Nc3 {[%emt 0:00:06]} g6 {[%emt 0:00:08]} 6. g3 {
[%emt 0:04:18]} Bg7 {[%emt 0:00:08]} 7. Bg2 {[%emt 0:00:07]} O-O {[%emt 0:00:
00]} 8. O-O {[%emt 0:00:20]} Nc6 {[%emt 0:00:52]} 9. Nde2 {[%emt 0:01:29]} Rb8
{[%emt 0:01:02]} 10. Nd5 {[%emt 0:03:32]} Nd7 {[%emt 0:03:20]} 11. c3 {[%emt 0:
00:00]} e6 {[%emt 0:04:13]} 12. Ne3 {[%emt 0:01:49]} Qc7 {[%emt 0:01:36]} 13.
Nc4 {[%emt 0:07:23]} b5 {[%emt 0:09:30]} 14. Ne3 {[%emt 0:13:26]} b4 {[%emt 0:
00:00]} 15. Bd2 {[%emt 0:13:43]} Nc5 {[%emt 0:08:39]} 16. cxb4 {[%emt 0:03:46]}
Nxb4 {[%emt 0:00:28]} 17. Bc3 {[%emt 0:01:10]} Nbd3 {[%emt 0:03:23]} 18. Bxg7 {
[%emt 0:02:19]} Kxg7 {[%emt 0:00:30]} 19. b3 {[%emt 0:00:10]} Ba6 {[%emt 0:00:
00]} 20. Qd2 {[%emt 0:02:12]} Rfc8 {[%emt 0:09:21]} 21. Rfd1 {[%emt 0:00:55]}
Qb6 {[%emt 0:04:53]} 22. Nf4 {[%emt 0:05:40]} Nxf4 {[%emt 0:04:46]} 23. gxf4 {
[%emt 0:00:05]} Nd3 {[%emt 0:01:19]} 24. Bf1 {[%emt 0:10:06]} Nxf4 {[%emt 0:00:
00]} 25. Qxd6 {[%emt 0:00:07]} Qxd6 {[%emt 0:00:39]} 26. Rxd6 {[%emt 0:00:06]}
Bxf1 {[%emt 0:01:59]} 27. Kxf1 {[%emt 0:00:06]} Rc7 {[%emt 0:03:17]} 28. Rad1 {
[%emt 0:03:38]} Rbc8 {[%emt 0:01:24]} 29. Nc4 {[%emt 0:01:28]} g5 {[%emt 0:00:
00]} 30. f3 {[%emt 0:02:30]} Ng6 {[%emt 0:02:05]} 31. Kf2 {[%emt 0:01:05]} Kf6
{[%emt 0:02:01]} 32. Ne3 {[%emt 0:06:48]} Kg7 {[%emt 0:01:39]} 33. Ra6 {
[%emt 0:01:09]} Ne7 {[%emt 0:02:45]} 34. Nc4 {[%emt 0:02:31]} Nc6 {[%emt 0:00:
00]} 35. Rd2 {[%emt 0:01:11]} Rd8 {[%emt 0:01:34]} 36. Rxd8 {[%emt 0:03:34]}
Nxd8 {[%emt 0:00:06]} 37. Kg3 {[%emt 0:00:40]} Nc6 {[%emt 0:02:05]} 38. Nd6 {
[%emt 0:01:46]} Nb8 {[%emt 0:01:03]} 39. Ne8+ {[%emt 0:00:07]} Kg6 {[%emt 0:00:
00]} 40. Nxc7 {[%emt 0:00:06]} Nxa6 {[%emt 0:00:03]} 41. Nxa6 {[%emt 0:30:07]}
f5 {[%emt 0:30:10]} 42. exf5+ {[%emt 0:00:18]} exf5 {[%emt 0:00:06]} 43. f4 {
[%emt 0:01:22]} h5 {[%emt 0:02:30]} 44. fxg5 {[%emt 0:00:15]} Kxg5 {[%emt 0:00:
00]} 45. h4+ {[%emt 0:00:06]} Kf6 {[%emt 0:00:15]} 46. Kf4 {[%emt 0:00:05]} Kg6
{[%emt 0:00:43]} 47. Nc7 {[%emt 0:00:33]} 1-0

[Event "44th Chess Olympiad Women 2022"]
[Site "Chennai"]
[Date "2022.08.06"]
[Round "8.37"]
[White "Cordero, Daniela"]
[Black "Besa, Masaiti"]
[Result "1-0"]
[WhiteElo "2005"]
[BlackElo "1745"]
[Annotator "NA RC"]
[PlyCount "47"]
[EventDate "2022.??.??"]
[TimeControl "60"]

1. d4 {[%emt 0:00:02]} Nf6 {[%emt 0:00:11]} 2. Nf3 {[%emt 0:00:38]} g6 {
[%emt 0:00:05]} 3. Nc3 {[%emt 0:00:32]} d5 {[%emt 0:00:26]} 4. Bf4 {[%emt 0:00:
00]} Bg7 {[%emt 0:03:38]} 5. e3 {[%emt 0:00:51]} c6 {[%emt 0:04:01]} 6. Be2 {
[%emt 0:00:24]} Nbd7 {[%emt 0:01:27]} 7. Ne5 {[%emt 0:00:56]} Qa5 {[%emt 0:00:
00]} 8. Qd2 {[%emt 0:08:54]} Nxe5 {[%emt 0:05:30]} 9. Bxe5 {[%emt 0:00:22]} h5
{[%emt 0:03:40]} 10. O-O {[%emt 0:04:28]} O-O {[%emt 0:02:21]} 11. f3 {[%emt 0:
00:00]} Bf5 {[%emt 0:01:04]} 12. e4 {[%emt 0:03:19]} dxe4 {[%emt 0:01:02]} 13.
fxe4 {[%emt 0:00:08]} Be6 {[%emt 0:03:41]} 14. Qf4 {[%emt 0:17:49]} Ng4 {
[%emt 0:16:21]} 15. Bxg7 {[%emt 0:01:09]} Kxg7 {[%emt 0:00:07]} 16. e5 {
[%emt 0:06:48]} Rad8 {[%emt 0:03:42]} 17. Bd3 {[%emt 0:09:30]} Qb6 {[%emt 0:00:
00]} 18. Ne2 {[%emt 0:01:17]} c5 {[%emt 0:04:08]} 19. c3 {[%emt 0:01:51]} cxd4
{[%emt 0:02:49]} 20. Nxd4 {[%emt 0:12:47]} Bd5 {[%emt 0:09:14]} 21. Rab1 {
[%emt 0:15:16]} Bxa2 {[%emt 0:02:33]} 22. Rbc1 {[%emt 0:00:28]} Bd5 {[%emt 0:
00:00]} 23. Qg5 {[%emt 0:03:56]} Bc6 {[%emt 0:09:04]} 24. Rf4 {[%emt 0:06:34]}
1-0

[Event "44th Chess Olympiad Women 2022"]
[Site "Chennai"]
[Date "2022.08.06"]
[Round "8.37"]
[White "Marape, Naledi"]
[Black "Molina, Jessica"]
[Result "0-1"]
[WhiteElo "1714"]
[BlackElo "1889"]
[Annotator "NA RC"]
[PlyCount "52"]
[EventDate "2022.??.??"]
[TimeControl "60"]

1. e4 {[%emt 0:00:04]} e6 {[%emt 0:00:14]} 2. d3 {[%emt 0:00:10]} d5 {[%emt 0:
00:00]} 3. Nd2 {[%emt 0:00:07]} Nf6 {[%emt 0:01:33]} 4. Ngf3 {[%emt 0:00:26]}
c5 {[%emt 0:02:23]} 5. g3 {[%emt 0:00:08]} b6 {[%emt 0:02:00]} 6. Bg2 {[%emt 0:
00:00]} Bb7 {[%emt 0:00:26]} 7. e5 {[%emt 0:00:08]} Nfd7 {[%emt 0:00:33]} 8.
O-O {[%emt 0:00:28]} Nc6 {[%emt 0:01:10]} 9. Re1 {[%emt 0:00:20]} g5 {[%emt 0:
00:00]} 10. h3 {[%emt 0:16:50]} h6 {[%emt 0:13:51]} 11. d4 {[%emt 0:03:25]}
cxd4 {[%emt 0:02:47]} 12. Nb3 {[%emt 0:00:41]} Bg7 {[%emt 0:02:49]} 13. Nfxd4 {
[%emt 0:02:11]} Ndxe5 {[%emt 0:04:47]} 14. f4 {[%emt 0:04:19]} gxf4 {[%emt 0:
00:00]} 15. gxf4 {[%emt 0:00:23]} Nxd4 {[%emt 0:07:46]} 16. Nxd4 {[%emt 0:00:
00]} Nc6 {[%emt 0:07:52]} 17. Nf5 {[%emt 0:12:34]} Bf6 {[%emt 0:05:17]} 18.
Qxd5 {[%emt 0:05:10]} Qxd5 {[%emt 0:00:33]} 19. Bxd5 {[%emt 0:00:08]} O-O-O {
[%emt 0:02:10]} 20. Bxc6 {[%emt 0:02:42]} Rhg8+ {[%emt 0:03:24]} 21. Kh2 {
[%emt 0:02:01]} Bxc6 {[%emt 0:00:29]} 22. Ne3 {[%emt 0:00:11]} Bh4 {[%emt 0:00:
00]} 23. Rg1 {[%emt 0:02:11]} h5 {[%emt 0:00:14]} 24. Rxg8 {[%emt 0:06:48]}
Rxg8 {[%emt 0:00:08]} 25. Bd2 {[%emt 0:00:31]} Bg3+ {[%emt 0:01:03]} 26. Kg1 {
[%emt 0:00:07]} Be1+ {[%emt 0:00:16]} 0-1

[Event "44th Chess Olympiad Women 2022"]
[Site "Chennai"]
[Date "2022.08.06"]
[Round "8.37"]
[White "Monroy G., Nataly A."]
[Black "Banda Natalie Katlo"]
[Result "1-0"]
[WhiteElo "1907"]
[BlackElo "1688"]
[Annotator "NA RC"]
[PlyCount "111"]
[EventDate "2022.??.??"]
[TimeControl "60"]

1. d4 {[%emt 0:00:05]} d5 {[%emt 0:00:13]} 2. Nf3 {[%emt 0:00:20]} Nf6 {
[%emt 0:00:17]} 3. c4 {[%emt 0:00:06]} c6 {[%emt 0:00:12]} 4. cxd5 {[%emt 0:00:
00]} cxd5 {[%emt 0:00:15]} 5. Nc3 {[%emt 0:00:15]} a6 {[%emt 0:02:10]} 6. Bf4 {
[%emt 0:00:49]} Nc6 {[%emt 0:01:27]} 7. e3 {[%emt 0:01:10]} Bf5 {[%emt 0:06:04]
} 8. Be2 {[%emt 0:05:40]} e6 {[%emt 0:01:52]} 9. O-O {[%emt 0:00:41]} Be7 {
[%emt 0:00:55]} 10. Rc1 {[%emt 0:07:01]} O-O {[%emt 0:03:39]} 11. Na4 {[%emt 0:
00:00]} Rc8 {[%emt 0:04:52]} 12. a3 {[%emt 0:04:17]} Ne4 {[%emt 0:05:39]} 13.
h3 {[%emt 0:09:35]} g5 {[%emt 0:07:23]} 14. Bh2 {[%emt 0:01:45]} f6 {[%emt 0:
00:00]} 15. Nc5 {[%emt 0:07:31]} Bxc5 {[%emt 0:04:58]} 16. dxc5 {[%emt 0:00:16]
} e5 {[%emt 0:03:56]} 17. b4 {[%emt 0:06:41]} Kg7 {[%emt 0:05:37]} 18. Qb3 {
[%emt 0:05:18]} Be6 {[%emt 0:09:57]} 19. Rfd1 {[%emt 0:09:36]} Qe7 {[%emt 0:00:
00]} 20. Qb2 {[%emt 0:00:45]} h5 {[%emt 0:04:45]} 21. Nd2 {[%emt 0:10:43]} Nxd2
{[%emt 0:02:36]} 22. Rxd2 {[%emt 0:01:08]} Rh8 {[%emt 0:00:48]} 23. Bf3 {
[%emt 0:05:29]} e4 {[%emt 0:11:19]} 24. Bd1 {[%emt 0:01:22]} g4 {[%emt 0:01:38]
} 25. h4 {[%emt 0:00:05]} Rcd8 {[%emt 0:05:14]} 26. Bf4 {[%emt 0:01:52]} Bf7 {
[%emt 0:02:04]} 27. Bb3 {[%emt 0:02:08]} Ne5 {[%emt 0:00:42]} 28. Bxe5 {
[%emt 0:03:00]} Qxe5 {[%emt 0:04:08]} 29. Qxe5 {[%emt 0:01:21]} fxe5 {[%emt 0:
00:00]} 30. Rcd1 {[%emt 0:00:02]} Rd7 {[%emt 0:00:24]} 31. Bc2 {[%emt 0:02:38]}
Rc7 {[%emt 0:02:39]} 32. Bb3 {[%emt 0:01:49]} Rd8 {[%emt 0:00:40]} 33. Kf1 {
[%emt 0:01:44]} Rcd7 {[%emt 0:02:54]} 34. Ba4 {[%emt 0:01:10]} Rc7 {[%emt 0:00:
00]} 35. Bc2 {[%emt 0:00:05]} Rf8 {[%emt 0:00:46]} 36. Bb3 {[%emt 0:00:13]} Rd8
{[%emt 0:00:19]} 37. Ke1 {[%emt 0:00:08]} Rcd7 {[%emt 0:01:03]} 38. Ba4 {
[%emt 0:00:06]} Rc7 {[%emt 0:00:25]} 39. Bc2 {[%emt 0:00:05]} Rcd7 {[%emt 0:00:
00]} 40. Bxe4 {[%emt 0:00:21]} d4 {[%emt 0:00:32]} 41. Bf5 {[%emt 0:31:34]} Rd5
{[%emt 0:01:13]} 42. e4 {[%emt 0:00:00]} R5d7 {[%emt 0:00:36]} 43. Bxd7 {
[%emt 0:00:00]} Rxd7 {[%emt 0:00:05]} 44. f3 {[%emt 0:00:00]} Be6 {[%emt 0:00:
00]} 45. Rc1 {[%emt 0:00:00]} Rc7 {[%emt 0:00:20]} 46. f4 {[%emt 0:00:00]} Kf6
{[%emt 0:00:57]} 47. g3 {[%emt 0:00:00]} Bd7 {[%emt 0:00:53]} 48. Rf2 {[%emt 0:
00:00]} Rc8 {[%emt 0:01:04]} 49. Kd2 {[%emt 0:00:00]} Ke6 {[%emt 0:00:47]} 50.
Rcf1 {[%emt 0:00:00]} Bb5 {[%emt 0:00:16]} 51. Re1 {[%emt 0:00:00]} Bd7 {
[%emt 0:00:04]} 52. fxe5 {[%emt 0:00:00]} Kxe5 {[%emt 0:00:06]} 53. Rf7 {
[%emt 0:00:00]} Rd8 {[%emt 0:00:49]} 54. Rh7 {[%emt 0:00:00]} Be8 {[%emt 0:00:
00]} 55. Re7+ {[%emt 0:00:00]} Kf6 {[%emt 0:00:10]} 56. Rxb7 {[%emt 0:00:00]}
1-0

[Event "44th Chess Olympiad Women 2022"]
[Site "Chennai"]
[Date "2022.08.06"]
[Round "8.37"]
[White "Moshoboro Arona"]
[Black "Coro, Soledad"]
[Result "0-1"]
[WhiteElo "1611"]
[BlackElo "1623"]
[Annotator "NA RC"]
[PlyCount "82"]
[EventDate "2022.??.??"]
[TimeControl "60"]

1. d4 {[%emt 0:00:02]} g6 {[%emt 0:00:05]} 2. Nf3 {[%emt 0:00:07]} Bg7 {
[%emt 0:00:05]} 3. e3 {[%emt 0:00:19]} Nf6 {[%emt 0:00:08]} 4. c4 {[%emt 0:00:
00]} c5 {[%emt 0:00:14]} 5. Nc3 {[%emt 0:00:52]} Na6 {[%emt 0:00:32]} 6. Be2 {
[%emt 0:02:28]} O-O {[%emt 0:00:16]} 7. O-O {[%emt 0:00:30]} d6 {[%emt 0:00:41]
} 8. d5 {[%emt 0:11:02]} Bd7 {[%emt 0:00:37]} 9. e4 {[%emt 0:01:23]} Rb8 {
[%emt 0:00:35]} 10. a3 {[%emt 0:04:53]} Nc7 {[%emt 0:00:14]} 11. Bg5 {[%emt 0:
00:00]} h6 {[%emt 0:00:14]} 12. Bf4 {[%emt 0:03:05]} a6 {[%emt 0:07:07]} 13. b4
{[%emt 0:19:13]} Nh5 {[%emt 0:02:41]} 14. Bd2 {[%emt 0:00:11]} b5 {[%emt 0:00:
00]} 15. bxc5 {[%emt 0:03:13]} dxc5 {[%emt 0:03:29]} 16. Rb1 {[%emt 0:02:25]}
bxc4 {[%emt 0:26:08]} 17. Bxc4 {[%emt 0:00:25]} Nb5 {[%emt 0:00:04]} 18. Qc1 {
[%emt 0:11:27]} Kh7 {[%emt 0:01:14]} 19. Na4 {[%emt 0:06:07]} Qc7 {[%emt 0:00:
00]} 20. Be2 {[%emt 0:17:29]} Rfc8 {[%emt 0:03:44]} 21. Nc3 {[%emt 0:06:03]}
Nxc3 {[%emt 0:03:46]} 22. Bxc3 {[%emt 0:01:51]} Rxb1 {[%emt 0:00:11]} 23. Qxb1
{[%emt 0:01:04]} Bxc3 {[%emt 0:00:06]} 24. Qb3 {[%emt 0:03:09]} Bg7 {[%emt 0:
00:00]} 25. Rb1 {[%emt 0:01:08]} c4 {[%emt 0:00:34]} 26. Qc2 {[%emt 0:00:43]}
Nf4 {[%emt 0:00:30]} 27. Bf1 {[%emt 0:00:36]} f5 {[%emt 0:02:59]} 28. Re1 {
[%emt 0:01:15]} fxe4 {[%emt 0:01:23]} 29. Qxe4 {[%emt 0:00:10]} Bf5 {[%emt 0:
00:00]} 30. Qe3 {[%emt 0:00:34]} Nxd5 {[%emt 0:00:19]} 31. Qc1 {[%emt 0:00:32]}
Qc5 {[%emt 0:07:25]} 32. a4 {[%emt 0:00:35]} a5 {[%emt 0:00:26]} 33. Nd2 {
[%emt 0:00:22]} c3 {[%emt 0:00:54]} 34. Nb3 {[%emt 0:00:12]} Qb4 {[%emt 0:00:
00]} 35. Qd1 {[%emt 0:00:54]} Nf4 {[%emt 0:01:04]} 36. Nc1 {[%emt 0:00:29]} c2
{[%emt 0:00:16]} 37. Qf3 {[%emt 0:00:39]} Qxe1 {[%emt 0:00:39]} 38. Qxf4 {
[%emt 0:00:08]} Bb2 {[%emt 0:00:30]} 39. Nb3 {[%emt 0:00:49]} c1=Q {[%emt 0:00:
00]} 40. Nxc1 {[%emt 0:00:07]} Rxc1 {[%emt 0:00:10]} 41. h3 {[%emt 0:30:23]}
Be5 {[%emt 0:30:31]} 0-1

[Event "44th Chess Olympiad Women 2022"]
[Site "Chennai"]
[Date "2022.08.06"]
[Round "8.38"]
[White "Juarez Garcia, Daniela"]
[Black "Johannsdottir, Johanna Bjorg"]
[Result "0-1"]
[WhiteElo "1725"]
[BlackElo "1976"]
[Annotator "NA RC"]
[PlyCount "96"]
[EventDate "2022.??.??"]
[TimeControl "60"]

1. e4 {[%emt 0:00:02]} c5 {[%emt 0:00:06]} 2. c3 {[%emt 0:00:13]} Nf6 {[%emt 0:
00:00]} 3. e5 {[%emt 0:00:42]} Nd5 {[%emt 0:00:04]} 4. d4 {[%emt 0:00:14]} cxd4
{[%emt 0:00:08]} 5. cxd4 {[%emt 0:00:07]} Nc6 {[%emt 0:00:26]} 6. Bc4 {[%emt 0:
00:00]} e6 {[%emt 0:00:29]} 7. Nf3 {[%emt 0:06:22]} d6 {[%emt 0:00:22]} 8. O-O
{[%emt 0:02:47]} dxe5 {[%emt 0:00:18]} 9. dxe5 {[%emt 0:00:17]} Ndb4 {[%emt 0:
00:00]} 10. Na3 {[%emt 0:01:29]} Qxd1 {[%emt 0:01:33]} 11. Rxd1 {[%emt 0:00:05]
} a6 {[%emt 0:00:06]} 12. Be3 {[%emt 0:05:06]} Be7 {[%emt 0:03:27]} 13. Bb6 {
[%emt 0:07:58]} O-O {[%emt 0:00:26]} 14. Bb3 {[%emt 0:00:34]} Nd5 {[%emt 0:00:
00]} 15. Nc4 {[%emt 0:11:08]} a5 {[%emt 0:11:24]} 16. Nd4 {[%emt 0:05:58]} Nxe5
{[%emt 0:00:00]} 17. Nxe5 {[%emt 0:04:54]} Nxb6 {[%emt 0:00:00]} 18. a4 {
[%emt 0:00:33]} Bf6 {[%emt 0:10:04]} 19. Nc4 {[%emt 0:10:18]} Nxc4 {[%emt 0:00:
00]} 20. Bxc4 {[%emt 0:01:20]} b6 {[%emt 0:00:37]} 21. b3 {[%emt 0:02:25]} Bb7
{[%emt 0:01:32]} 22. Rac1 {[%emt 0:01:13]} Bg5 {[%emt 0:01:38]} 23. Rc3 {
[%emt 0:08:38]} Rad8 {[%emt 0:02:33]} 24. Be2 {[%emt 0:00:36]} Bf6 {[%emt 0:00:
00]} 25. Rcd3 {[%emt 0:01:04]} Be4 {[%emt 0:04:13]} 26. Re3 {[%emt 0:00:33]}
Bg6 {[%emt 0:00:34]} 27. Nb5 {[%emt 0:01:24]} Rxd1+ {[%emt 0:01:10]} 28. Bxd1 {
[%emt 0:00:07]} Rd8 {[%emt 0:00:14]} 29. Be2 {[%emt 0:00:48]} h6 {[%emt 0:00:
00]} 30. Kf1 {[%emt 0:00:31]} Rd2 {[%emt 0:04:25]} 31. Ke1 {[%emt 0:02:17]} Rb2
{[%emt 0:05:23]} 32. g3 {[%emt 0:02:46]} Be7 {[%emt 0:04:05]} 33. Bd1 {[%emt 0:
00:00]} Bc5 {[%emt 0:01:25]} 34. Rc3 {[%emt 0:01:49]} Bb4 {[%emt 0:00:09]} 35.
Kf1 {[%emt 0:00:31]} Bxc3 {[%emt 0:01:02]} 36. Nxc3 {[%emt 0:00:02]} Bc2 {
[%emt 0:00:32]} 37. Bxc2 {[%emt 0:00:18]} Rxc2 {[%emt 0:00:06]} 38. Nb5 {
[%emt 0:00:13]} Rd2 {[%emt 0:00:26]} 39. Ke1 {[%emt 0:01:01]} Rd3 {[%emt 0:00:
00]} 40. h3 {[%emt 0:00:25]} Rxb3 {[%emt 0:00:13]} 41. Kd2 {[%emt 0:30:11]}
Rb2+ {[%emt 0:30:20]} 42. Ke3 {[%emt 0:00:13]} Rb4 {[%emt 0:00:09]} 43. Nc3 {
[%emt 0:00:09]} f5 {[%emt 0:00:47]} 44. f3 {[%emt 0:00:33]} Kf7 {[%emt 0:00:09]
} 45. h4 {[%emt 0:00:26]} g5 {[%emt 0:01:07]} 46. h5 {[%emt 0:00:07]} Kf6 {
[%emt 0:01:06]} 47. f4 {[%emt 0:00:18]} gxf4+ {[%emt 0:01:20]} 48. gxf4 {
[%emt 0:00:06]} Ke7 {[%emt 0:00:23]} 0-1

[Event "44th Chess Olympiad Women 2022"]
[Site "Chennai"]
[Date "2022.08.06"]
[Round "8.38"]
[White "Lopez L., Dairyn D."]
[Black "Acevedo Mendez, Lisseth"]
[Result "1/2-1/2"]
[WhiteElo "1574"]
[BlackElo "1784"]
[Annotator "NA RC"]
[PlyCount "92"]
[EventDate "2022.??.??"]
[TimeControl "60"]

1. d4 {[%emt 0:00:07]} Nf6 {[%emt 0:00:13]} 2. Nf3 {[%emt 0:00:18]} b6 {
[%emt 0:00:17]} 3. e3 {[%emt 0:00:28]} Bb7 {[%emt 0:00:22]} 4. Be2 {[%emt 0:00:
00]} g6 {[%emt 0:00:05]} 5. b3 {[%emt 0:00:09]} Bg7 {[%emt 0:00:14]} 6. Bb2 {
[%emt 0:00:05]} O-O {[%emt 0:00:42]} 7. O-O {[%emt 0:00:05]} d6 {[%emt 0:00:18]
} 8. c4 {[%emt 0:00:28]} Nbd7 {[%emt 0:02:27]} 9. Nbd2 {[%emt 0:01:03]} Re8 {
[%emt 0:03:28]} 10. Qc2 {[%emt 0:05:38]} e5 {[%emt 0:04:04]} 11. d5 {[%emt 0:
00:00]} a5 {[%emt 0:07:45]} 12. h3 {[%emt 0:03:04]} Nc5 {[%emt 0:01:33]} 13.
Nh2 {[%emt 0:04:14]} Nfd7 {[%emt 0:15:35]} 14. Rae1 {[%emt 0:13:23]} f5 {
[%emt 0:05:21]} 15. f4 {[%emt 0:05:46]} e4 {[%emt 0:06:30]} 16. Bxg7 {[%emt 0:
00:00]} Kxg7 {[%emt 0:00:04]} 17. Rf2 {[%emt 0:03:05]} Qh4 {[%emt 0:04:44]} 18.
Nb1 {[%emt 0:05:36]} Nf6 {[%emt 0:01:22]} 19. Nc3 {[%emt 0:01:14]} Nh5 {
[%emt 0:01:37]} 20. Nf1 {[%emt 0:01:33]} Ba6 {[%emt 0:04:35]} 21. a3 {[%emt 0:
00:00]} Ng3 {[%emt 0:03:09]} 22. Nxg3 {[%emt 0:01:30]} Qxg3 {[%emt 0:00:07]}
23. Bf1 {[%emt 0:00:17]} Nd7 {[%emt 0:04:51]} 24. Qd2 {[%emt 0:01:19]} Qh4 {
[%emt 0:03:15]} 25. Ne2 {[%emt 0:01:34]} Qf6 {[%emt 0:00:07]} 26. Nd4 {[%emt 0:
00:00]} Nf8 {[%emt 0:00:05]} 27. Rb1 {[%emt 0:03:02]} Bc8 {[%emt 0:04:48]} 28.
Be2 {[%emt 0:15:35]} h6 {[%emt 0:02:35]} 29. Nb5 {[%emt 0:02:04]} Re7 {[%emt 0:
00:00]} 30. Qd4 {[%emt 0:07:14]} Nh7 {[%emt 0:00:12]} 31. Rbf1 {[%emt 0:02:02]}
Qxd4 {[%emt 0:04:15]} 32. Nxd4 {[%emt 0:00:06]} Nf6 {[%emt 0:00:04]} 33. Kh2 {
[%emt 0:00:39]} Bd7 {[%emt 0:00:41]} 34. Rg1 {[%emt 0:01:31]} h5 {[%emt 0:00:
00]} 35. Ra1 {[%emt 0:00:56]} Kf7 {[%emt 0:02:15]} 36. Rff1 {[%emt 0:00:47]}
Ree8 {[%emt 0:00:30]} 37. b4 {[%emt 0:02:26]} axb4 {[%emt 0:03:21]} 38. axb4 {
[%emt 0:00:11]} Rh8 {[%emt 0:01:24]} 39. Kg1 {[%emt 0:04:10]} Ke7 {[%emt 0:00:
00]} 40. Rfc1 {[%emt 0:02:42]} Rhb8 {[%emt 0:04:39]} 41. b5 {[%emt 0:31:33]}
Rxa1 {[%emt 0:12:25]} 42. Rxa1 {[%emt 0:00:00]} Kd8 {[%emt 0:00:23]} 43. Ra7 {
[%emt 0:00:00]} Ng8 {[%emt 0:00:24]} 44. Kf2 {[%emt 0:00:00]} Ne7 {[%emt 0:00:
00]} 45. Kg3 {[%emt 0:00:00]} Nc8 {[%emt 0:00:53]} 46. Ra1 {[%emt 0:00:00]} Ke7
{[%emt 0:00:05]} 1/2-1/2